Cogmind - Beta 13 @@@ ROGUE MODE // 2024.07.30 @ 15:54:15 Player: DAFFA Result: Destroyed by G-47 Trooper with Particle Gun Performance ------------- Evolutions (2) 1000 Regions Visited (3) 600 Robots Destroyed (10) 50 Value Destroyed (289) 289 Prototype IDs (0) 0 Alien Tech Used (0) 0 Bonus (0) 0 TOTAL SCORE: 1939 Bonus ------- None Cogmind --------- Core Integrity 0/550 Matter 123/300 Energy 100/100 System Corruption 0% Temperature Cool (9) Movement Core (250) Ox4 Location -8/Materials Parts ------- > --- POWER (1) -------- (None) > --- PROPULSION (3) --- (None) > --- UTILITY (5) ------ Small Storage Unit > --- WEAPON (2) ------- Great Axe Great Axe > --- INVENTORY (8) ---- Hover Unit Cesium-ion Thruster Improved Sensor Array Signal Interpreter Hardened Light Armor Plating Particle Gun Assault Rifle Light Cannon Peak State ------------ > --- POWER ------------ Light Ion Engine > --- PROPULSION ------- Compact Wheel Compact Wheel Improved Hover Unit > --- UTILITY ---------- Small Storage Unit Sensor Array Signal Interpreter Particle Charger > --- WEAPON ----------- Heavy Missile Launcher Great Axe > --- INVENTORY -------- Hover Unit Cesium-ion Thruster Improved Sensor Array Signal Interpreter Hardened Light Armor Plating Particle Gun Assault Rifle Light Cannon [Rating: 20] Favorites ----------- Power Light Ion Engine Engine Light Ion Engine Propulsion Aluminum Leg Leg Aluminum Leg Wheel Compact Wheel Hover Unit Improved Hover Unit Utility Small Storage Unit Device Sensor Array Storage Small Storage Unit Processor Signal Interpreter Protection Weapon Shielding Weapon Light Cannon Energy Gun Small Laser Ballistic Gun Assault Rifle Ballistic Cannon Light Cannon Launcher Heavy Missile Launcher Slashing Weapon Great Axe Build | -11 -10 -9 -8 ------- Run | Yrd Mat Mat Mat Slots Evolved 4 | . . 2 2 Power . | . . . . Propulsion 1 | . . . 1 Utility 3 | . . 2 1 Weapon . | . . . . Parts Attached 40 | 6 6 20 8 Power 7 | 1 1 5 . Engine 7 | 1 1 5 . Core . | . . . . Reactor . | . . . . Propulsion 10 | 2 . 6 2 Treads . | . . . . Leg 2 | 2 . . . Wheel 4 | . . 2 2 Hover 4 | . . 4 . Flight . | . . . . Utility 14 | 1 4 6 3 Device 5 | . 2 1 2 Storage 3 | 1 . 2 . Processor 4 | . 2 2 . Hackware . | . . . . Protection 2 | . . 1 1 Artifact . | . . . . Weapon 9 | 2 1 3 3 Energy Gun 1 | 1 . . . Energy Cannon . | . . . . Ballistic Gun 3 | 1 . 2 . Ballistic Cannon 2 | . 1 1 . Launcher 1 | . . . 1 Special Weapon . | . . . . Impact Weapon . | . . . . Slashing Weapon 2 | . . . 2 Piercing Weapon . | . . . . Special Melee Weapon . | . . . . Unidentified Prototypes . | . . . . Parts Lost 8 | . . . 8 Power 1 | . . . 1 Propulsion 3 | . . . 3 Utility 3 | . . . 3 Weapon 1 | . . . 1 Highest Loss Streak 8 | . . . 8 To Critical Strikes . | . . . . Average Slot Usage (%) 87 | . 98 84 75 Engine 11 | . 14 10 7 Leg 9 | . 28 1 . Wheel 5 | . . 7 12 Hover 3 | . . 4 6 Device 11 | . 12 10 14 Storage 9 | . 7 11 9 Processor 11 | . 7 14 6 Protection 1 | . . 2 1 Energy Gun 1 | . 5 . . Ballistic Gun 10 | . 14 10 5 Ballistic Cannon 9 | . 8 10 5 Naked Turns . | . . . . Heaviest Build 36 | 11 16 16 36 Greatest Support 32 | 20 20 32 32 Greatest Overweight (x) 10 | . . 4 10 Average Overweight (x) . | . . . . Largest Inventory Capacity 8 | 8 8 8 8 Average Capacity 7 | 6 6 7 8 Most Carried 8 | 3 8 8 8 Average Carried 5 | 1 4 6 6 Final Capacity 8 | 8 5 8 8 Final Carried 8 | 3 4 7 8 Class Distribution -------------------- 82% | Mutant 9% | Scout 8% | Skirmisher Dominant Class ---------------- Mutant | -10/Materials Mutant | -9/Materials Mutant | -8/Materials Resources | -11 -10 -9 -8 ----------- Run | Yrd Mat Mat Mat Matter Collected 444 | 251 33 59 101 Remotely . | . . . . Salvage Created 334 | . 30 55 249 Parts 21 | . 5 9 7 Haulers Intercepted . | . . . . Recyclers Shooed 1 | . 1 . . Parts Field Recycled . | . . . . Retrieved Matter . | . . . . Parts Self-Destructed . | . . . . Prevented . | . . . . Kills | -11 -10 -9 -8 ------- Run | Yrd Mat Mat Mat Combat Hostiles Destroyed 5 | . . . 5 Melee 5 | . . . 5 Classes Destroyed 5 | . 2 . 3 Worker 1 | . 1 . . Watcher 4 | . 1 3 . Grunt 3 | . . . 3 Brawler 1 | . . . 1 Duelist 1 | . . . 1 Best Kill Streak 5 | . 1 1 5 Combat Bots Only 5 | . . . 5 Max Kills in Single Turn 1 | . 1 1 1 Gunslinging . | . . . . Exploded . | . . . . Melee 1 | . . . 1 Uniques/NPCs Destroyed . | . . . . Combat | -11 -10 -9 -8 -------- Run | Yrd Mat Mat Mat Hostile Shots Fired 127 | . . 6 121 Missed 27 | . . 2 25 Damage Taken 1678 | . . 60 1618 Core 596 | . . 31 565 Absorbed by Shields . | . . . . Core Remaining (%) 97 | 100 100 92 . Volleys Fired 11 | . 8 3 . Largest 2 | . 2 2 . Hottest 60 | . 60 55 . Shots Fired 22 | . 16 6 . Gun 15 | . 12 3 . Cannon 7 | . 4 3 . Launcher . | . . . . Special . | . . . . Kinetic 18 | . 12 6 . Thermal 4 | . 4 . . Explosive . | . . . . Electromagnetic . | . . . . Robot Hit Streak 5 | . 3 5 . Robot Miss Streak 5 | . 5 1 . Penetration Max . | . . . . Secondary Targets . | . . . . Shots Hit Robots 28 | . 5 3 20 Core Hits 12 | . 3 3 6 Critical Kills . | . . . . Critical Parts Destroyed . | . . . . Critical Strikes 3 | . . . 3 Sever 3 | . . . 3 Melee Attacks 28 | . . . 28 Impact . | . . . . Slashing 28 | . . . 28 Piercing . | . . . . Sneak Attacks . | . . . . Combat Hostiles . | . . . . Follow-up Attacks 5 | . . . 5 Damage Inflicted 815 | . 88 45 682 Guns 64 | . 37 27 . Cannons 69 | . 51 18 . Explosions . | . . . . Melee 682 | . . . 682 Ramming . | . . . . Kinetic 123 | . 78 45 . Thermal 10 | . 10 . . Explosive . | . . . . Electromagnetic . | . . . . Impact . | . . . . Slashing 682 | . . . 682 Piercing . | . . . . Highest Corruption . | . . . . Average Corruption . | . . . . Corruption Purged . | . . . . Corruption Blocked . | . . . . Overload Shots . | . . . . Overflow Damage 40 | . 11 . 29 Projectiles 11 | . 11 . . Explosions . | . . . . Melee 29 | . . . 29 Knockbacks 1 | . 1 . . Impact . | . . . . Kinetic 1 | . 1 . . Secondary . | . . . . Self-Inflicted Damage . | . . . . Shots . | . . . . Rammed . | . . . . Targets Rammed . | . . . . Kicked . | . . . . Crushed . | . . . . Highest Temperature 57 | . . . 57 Average Temperature 27 | . . . 27 Received Heat Transfer 927 | . . 18 909 Siege Activations . | . . . . Robots Corrupted . | . . . . Combat Hostiles . | . . . . Parts Fried . | . . . . Impact Corruptions . | . . . . Robots Melted . | . . . . Combat Hostiles . | . . . . Parts Melted . | . . . . Heat Transferred 25 | . 25 . . Parts Sabotaged . | . . . . Parts Stolen . | . . . . Parts Stripped . | . . . . Power Chain Reactions . | . . . . Alert | -11 -10 -9 -8 ------- Run | Yrd Mat Mat Mat Peak Influence 172 | . 43 119 172 Initial 17 | . . 17 12 Average 35 | . 20 37 68 Maximum Alert Level . | . . . . Low Security (%) 100 | 100 100 100 100 Level 1 . | . . . . Level 2 . | . . . . Level 3 . | . . . . Level 4 . | . . . . Level 5 . | . . . . High Security . | . . . . Max Security . | . . . . Squads Dispatched 1 | . 1 . . Investigation . | . . . . Extermination . | . . . . Reinforcement 1 | . 1 . . Assault . | . . . . Garrison . | . . . . Intercept . | . . . . Searches Triggered . | . . . . Construction Impeded . | . . . . Haulers Reinforced . | . . . . Active Scanning Responses . | . . . . Cargo Convoy Interrupts . | . . . . Stealth | -11 -10 -9 -8 --------- Run | Yrd Mat Mat Mat Distress Signals 1 | . . . 1 Communications Jammed . | . . . . Distress Signals . | . . . . Times Spotted 22 | . 3 6 13 Peak Tracking Total 10 | . 1 2 10 Tactical Retreats 4 | . . . 4 Traps | -11 -10 -9 -8 ------- Run | Yrd Mat Mat Mat Traps Triggered 5 | . . 5 . Indirectly . | . . . . Trap Hack Attempts . | . . . . Triggered . | . . . . Disarmed . | . . . . Reprogrammed . | . . . . Reused . | . . . . Traps Extracted . | . . . . Installed . | . . . . Triggered . | . . . . Machines | -11 -10 -9 -8 ---------- Run | Yrd Mat Mat Mat Machines Disabled . | . . . . Max in Single Turn . | . . . . Machines Repaired . | . . . . Machines Dismantled . | . . . . Machines Sabotaged . | . . . . Overloaded Fab Kills . | . . . . Hacking | -11 -10 -9 -8 --------- Run | Yrd Mat Mat Mat Machines Accessed 1 | . . 1 . Terminals 1 | . . 1 . Fabricators . | . . . . Repair Stations . | . . . . Recycling Units . | . . . . Scanalyzers . | . . . . Garrison Access . | . . . . Total Hacks 2 | . . 2 . Successful 1 | . . 1 . Failed 1 | . . 1 . Catastrophic . | . . . . Database Lockouts . | . . . . Manual 2 | . . 2 . Terminals 2 | . . 2 . Fabricators . | . . . . Repair Stations . | . . . . Recycling Units . | . . . . Scanalyzers . | . . . . Garrison Access . | . . . . Terminal Hacks 1 | . . 1 . Hauler Manifests 1 | . . 1 . Fabricator Hacks . | . . . . Repair Station Hacks . | . . . . Recycling Unit Hacks . | . . . . Scanalyzer . | . . . . Garrison Access Hacks . | . . . . Unauthorized Hacks . | . . . . Terminals . | . . . . Fabricators . | . . . . Repair Stations . | . . . . Recycling Units . | . . . . Scanalyzers . | . . . . Garrison Access . | . . . . Data Cores Recovered . | . . . . Used . | . . . . Hacking Detections . | . . . . Full Trace Events . | . . . . Feedback Events . | . . . . Feedback Blocked . | . . . . Robot Schematics Acquired . | . . . . Robots Built . | . . . . Authchips . | . . . . Time . | . . . . Total Robot Build Rating . | . . . . Part Schematics Acquired . | . . . . Parts Built . | . . . . Authchips . | . . . . Time . | . . . . Total Part Build Rating . | . . . . Parts Repaired . | . . . . Time . | . . . . Parts Recycled . | . . . . Recycled Matter . | . . . . Retrieved Matter . | . . . . Retrieved Components . | . . . . Parts Scanalyzed . | . . . . Part Schematics Acquired . | . . . . Parts Damaged . | . . . . Bothacking | -11 -10 -9 -8 ------------ Run | Yrd Mat Mat Mat Used RIF Installer . | . . . . Robots Hacked . | . . . . Non-combat . | . . . . Combat . | . . . . Robot Hacks Applied . | . . . . Relay Couplers Released . | . . . . Fabnet Peak Effective % . | . . . . Robots Rewired . | . . . . Allies Hacked . | . . . . Hacks Repelled . | . . . . Allies | -11 -10 -9 -8 -------- Run | Yrd Mat Mat Mat Total Allies . | . . . . Largest Group . | . . . . Highest-Rated Group . | . . . . Highest-Rated Ally . | . . . . Total Orders . | . . . . Ally Attacks . | . . . . Total Damage . | . . . . Kills . | . . . . Allies Corrupted . | . . . . Allies Melted . | . . . . Intel | -11 -10 -9 -8 ------- Run | Yrd Mat Mat Mat Robot Analysis Total . | . . . . Derelict Logs Recovered . | . . . . Drone Launches . | . . . . Drone Recoveries . | . . . . Exploration | -11 -10 -9 -8 ------------- Run | Yrd Mat Mat Mat Turns Passed 1433 | 75 392 753 213 Spaces Moved 999 | 52 287 544 116 Core 123 | 2 . 119 2 Treads . | . . . . Legs 385 | 50 287 48 . Wheels 256 | . . 148 108 Hover 235 | . . 229 6 Flight . | . . . . Fastest Speed 50 | 50 120 56 56 Average Speed 114 | 117 120 113 103 Slowest Speed 550 | 120 120 250 550 Overloaded Moves . | . . . . Propulsion Burnouts . | . . . . Robots Hopped . | . . . . Cave-ins Triggered . | . . . . Exploration Rate (%) 24 | 4 45 35 13 Regions Visited 3 Branch Regions . Pre-discovered Areas . | . . . . Known Exits Taken 2 | . 1 1 . Unknown Exits Taken 1 | 1 . . . Scrap Searched . | . . . . Spaces Dug . | . . . . Terrain Destroyed . | . . . . Melee . | . . . . Projectile . | . . . . AOE . | . . . . Terrain Rammed . | . . . . Walls Destroyed . | . . . . Machines Disabled . | . . . . Actions | -11 -10 -9 -8 --------- Run | Yrd Mat Mat Mat Total 1222 | 66 319 668 169 Wait 105 | . 5 84 16 Move 996 | 51 286 543 116 Hop . | . . . . Pick Up 35 | 9 9 13 4 Fast Attach 9 | . . 6 3 Attach 20 | 6 3 8 3 Detach 3 | . . 2 1 Swap 11 | . 3 6 2 Drop 10 | . 5 3 2 Fire 11 | . 8 3 . Melee 22 | . . . 22 Ram . | . . . . Kick . | . . . . Crush . | . . . . Escape Stasis . | . . . . Rewire . | . . . . Trap . | . . . . Miscellaneous . | . . . . Route ------- -11/Scrapyard -10/Materials (discovered 2 exits: *Mat / [*Min]) -9/Materials (discovered 2 exits: *Mat / [*Min]) -8/Materials History --------- Turn | Location | Event 6 | -11/Scrapyard | Discovered new exit (range 16) 76 | -11/Scrapyard | Entered Materials 211 | -10/Materials | Discovered new exit (range 7) 313 | -10/Materials | Build established: Mutant 314 | -10/Materials | Discovered new exit (range 16) 465 | -10/Materials | Identified exit to Materials 468 | -10/Materials | Entered another Materials area 468 | -9/Materials | Evolved 2 slots: Utility x2 1204 | -9/Materials | Discovered new exit (range 15) 1215 | -9/Materials | Discovered new exit (range 10) 1220 | -9/Materials | Identified exit to Materials 1221 | -9/Materials | Entered another Materials area 1221 | -8/Materials | Evolved 2 slots: Propulsion x1, Utility x1 1390 | -8/Materials | Core integrity fell below 50% 1417 | -8/Materials | Core integrity fell below 20% 1434 | -8/Materials | Destroyed by G-47 Trooper with Particle Gun Last Messages --------------- Trooper. 01404_ Destroyed Aluminum Leg. 01408_ Critical hit (Burn: +37). 01410_ G-47 Trooper destroyed. 01411_ Acquired 55 matter. 01413_ G-47 Trooper destroyed. 01414_ Hrd. Heavy Armor Plating destroyed. 01416_ G-47 Trooper Particle Gun severed. 01421_ Great Axe follow-up attack on G-47 Trooper. 01421_ R-06 Scavenger collects Imp. Aluminum Leg. 01424_ R-06 Scavenger collects Weapon Shielding. 01427_ Great Axe follow-up attack on G-47 Trooper. 01427_ R-06 Scavenger collects Particle Charger. 01430_ G-47 Trooper destroyed. 01430_ R-06 Scavenger collects Particle Gun. 01433_ R-06 Scavenger collects Lgt. Nuclear Core. Map ----- +----------------------------------------------------+ | ?????????????????????????????????????????????????? | | ?????????????????????????????????????????????????? | | ?????????????????????????????????????????????????? | | ?????????????????????????????????????????????????? | | ?????????????????????????????????????????????????? | | ?????????????????????????????????????????????????? | | ?????????????????????????????????????????????????? | | ?????????????????????????????????????????????????? | | ?????????????????????????????????????????????????? | | ?????????????????????????????????????????????????? | | ?????????????????????????????????????????????????? | | ?????????????????????????????????????????????????? | | ?????????????????????????????????????????????????? | | ?????????????????????????????????????????????????? | | ?????????????????????????????????????????????????? | | ?????????????????????????????????????????????????? | | ?????????????????????????????????????????????????? | | ?????????????????????????????????????????????????? | | ?????????????????????????????????????????????????? | | ?????????????????????????????????????????????????? | | ?????????????????????????????????????????????????? | | ?????????????????????????????????????????????????? | | ???????????????????????#####?????????????????????? | | ??????????????#????????#%!!#?????????????????????? | | ????????????# #????????#!!!#?????????????????????? | | ????????????# #????????#!@/#?????????????????????? | | ????????????# #????????#g%/#?????????????????????? | | ?????????#### ####???###r[]#?????????????????????? | | ?????????# #???# %]]#?????????????????????? | | ?????????# #???# ######????????????????????? | | ?????????# """ #???# # #????????????????????? | | ?????????# """ #???# # #????????????????????? | | ?????????# """ #???# # #????????????????????? | | #######+## ##### # #????????????????????? | | + #????????????????????? | | # ##### ########+####### #????????????????????? | | ??????# #?????? ?????# #????????????????????? | | ??????# #?????? ?????# #????????????????????? | | ??????# #????? ????# #????????????????????? | | ??????# #????? ????######????????????????????? | | ??????# #????# ?????????????????????????????? | | ??????# #????# ?????????????????????????????? | | ??????# #############????????????????????????????? | | ??????# + ! #?????????????????????????????? | | ??????# ##### !#?????????????????????????????? | | ?????# ???# /! #?????????????????????????????? | | ?????# ???# /! #?????????????????????????????? | | ?????## ???# #?????????????????????????????? | | ??????###???# #?????????????????????????????? | | ################+#########???????????????????????? | +----------------------------------------------------+ Best States ------------- Heat Dissipation 31 Energy Generation 10 Energy Capacity 250 Matter Stores 291 Matter Capacity 300 Sight Range 18 Robot Scan Range 15 Terrain Scan Density 10 Armor Coverage 600 Weapon Shielding 33 Evasion (%) 55 Particle Charging 15 Item Schematics ----------------- None Robot Schematics ------------------ None Fabricated ------------ Nothing Alien Tech Used ----------------- None Achievements -------------- Oops Challenges ------------ None Game ------ Seed SubdwellerHoverTerminator Manual? 0 Play Time 00:16:11 Cumulative 8.4 hours Start 2024.07.30 @ 15:37:27 End 2024.07.30 @ 15:54:15 Sessions 1 Manual Loads 0 Difficulty Rogue Special Mode None Game No. 15 Rogue 11 Adventurer 4 Explorer 0 Win Type - Total 0 Types 0/0/0/0/0/0/0/0/0 Lore% 3 Gallery% 14 Achievement% 12 Wizard Run 0 Options --------- Layout 1 ASCII 0 Keyboard 0 Movement Mouse Keybinds 0 Fullscreen 2 Font 24/Smallcaps Map View 50x35 Zoom Use 0% Tactical HUD 1 Map Filters NONE Filters NONE Steam 1 RUN: 499bca15-0caa-4c35-b8cb-ad104d11ef42